[Event "*** Titled Tuesday 3|2 Blitz"]
[Site "Chess.com"]
[Date "2015.11.03"]
[Round "2"]
[White "DanielNaroditsky"]
[Black "DeviatkinAndrey"]
[Result "1/2-1/2"]
[WhiteElo "2551"]
[BlackElo "2466"]
[TimeControl "180+2"]
[EndTime "17:23:26 PST"]
[Termination "Game drawn - insufficient material"]

1. d4 {[%clk 0:03:01.9]} 1... d5 {[%clk 0:03:00.6]} 2. c4 {[%clk 0:03:02.5]}
2... c6 {[%clk 0:03:01.9]} 3. Nf3 {[%clk 0:03:02.3]} 3... Nf6 {[%clk 0:03:03.1]}
4. g3 {[%clk 0:03:03]} 4... Bf5 {[%clk 0:03:03.4]} 5. Nc3 {[%clk 0:03:02.8]}
5... e6 {[%clk 0:03:02.8]} 6. Nh4 {[%clk 0:03:04]} 6... Bg4 {[%clk 0:03:01.8]}
7. h3 {[%clk 0:03:04.3]} 7... Bh5 {[%clk 0:03:02.7]} 8. g4 {[%clk 0:03:05.7]}
8... Nfd7 {[%clk 0:03:00.5]} 9. Ng2 {[%clk 0:02:38.4]} 9... Bg6 {[%clk
0:02:58.7]} 10. Nf4 {[%clk 0:02:38]} 10... Bd6 {[%clk 0:02:47]} 11. h4 {[%clk
0:02:36.4]} 11... Qc7 {[%clk 0:02:43.7]} 12. Nxg6 {[%clk 0:02:29]} 12... hxg6
{[%clk 0:02:44]} 13. e4 {[%clk 0:02:29.9]} 13... dxe4 {[%clk 0:02:39.6]} 14.
Nxe4 {[%clk 0:02:31.1]} 14... Bb4+ {[%clk 0:02:25.2]} 15. Nc3 {[%clk 0:02:32.4]}
15... Nf6 {[%clk 0:02:20.9]} 16. Bg2 {[%clk 0:02:27.9]} 16... Nbd7 {[%clk
0:02:16.2]} 17. a3 {[%clk 0:02:24.8]} 17... Bd6 {[%clk 0:02:13.9]} 18. Qf3
{[%clk 0:02:11.1]} 18... e5 {[%clk 0:01:54.2]} 19. Be3 {[%clk 0:01:32.7]} 19...
exd4 {[%clk 0:01:44.2]} 20. Bxd4 {[%clk 0:01:34.3]} 20... Be5 {[%clk 0:01:45.4]}
21. O-O-O {[%clk 0:01:25.3]} 21... Bxd4 {[%clk 0:01:45.8]} 22. Rxd4 {[%clk
0:01:27]} 22... O-O-O {[%clk 0:01:47.1]} 23. g5 {[%clk 0:01:25.4]} 23... Ne5
{[%clk 0:01:45.2]} 24. Qh3+ {[%clk 0:01:22.4]} 24... Kb8 {[%clk 0:00:55.9]} 25.
Rxd8+ {[%clk 0:01:13.5]} 25... Rxd8 {[%clk 0:00:56.1]} 26. gxf6 {[%clk 0:01:15]}
26... Nd3+ {[%clk 0:00:57.2]} 27. Kb1 {[%clk 0:01:16.7]} 27... Nxf2 {[%clk
0:00:58]} 28. Qf3 {[%clk 0:01:00.1]} 28... Nxh1 {[%clk 0:00:58]} 29. Bxh1 {[%clk
0:01:00.9]} 29... gxf6 {[%clk 0:00:45.4]} 30. Qxf6 {[%clk 0:01:01.7]} 30... Rd6
{[%clk 0:00:27.9]} 31. Qg5 {[%clk 0:00:53.5]} 31... Qd8 {[%clk 0:00:26.2]} 32.
Qf4 {[%clk 0:00:49.3]} 32... Qc7 {[%clk 0:00:25.6]} 33. Ka2 {[%clk 0:00:48.1]}
33... a5 {[%clk 0:00:25.8]} 34. c5 {[%clk 0:00:45.2]} 34... Rd8 {[%clk
0:00:24.7]} 35. Qf6 {[%clk 0:00:42.5]} 35... Rd2 {[%clk 0:00:21.2]} 36. Ne4
{[%clk 0:00:37.5]} 36... Rh2 {[%clk 0:00:21.6]} 37. Bf3 {[%clk 0:00:38.9]} 37...
Rh3 {[%clk 0:00:20]} 38. Nd6 {[%clk 0:00:36.4]} 38... Qd7 {[%clk 0:00:17.1]} 39.
Qh8+ {[%clk 0:00:35.4]} 39... Ka7 {[%clk 0:00:10.5]} 40. Nc8+ {[%clk 0:00:36]}
40... Ka6 {[%clk 0:00:12.1]} 41. Be2+ {[%clk 0:00:35.6]} 41... b5 {[%clk
0:00:13.7]} 42. cxb6+ {[%clk 0:00:24.1]} 42... Kb7 {[%clk 0:00:14.9]} 43. Qe5
{[%clk 0:00:13.4]} 43... Qxc8 {[%clk 0:00:10.5]} 44. Qe7+ {[%clk 0:00:12]} 44...
Kxb6 {[%clk 0:00:11.4]} 45. Qxf7 {[%clk 0:00:13.7]} 45... Qd8 {[%clk 0:00:11.4]}
46. Bc4 {[%clk 0:00:12.6]} 46... Qd6 {[%clk 0:00:12.7]} 47. Bb3 {[%clk
0:00:08.4]} 47... Rxh4 {[%clk 0:00:13]} 48. Qf2+ {[%clk 0:00:09.5]} 48... Rd4
{[%clk 0:00:13.8]} 49. Qf7 {[%clk 0:00:10.4]} 49... c5 {[%clk 0:00:15]} 50. Qe8
{[%clk 0:00:11]} 50... c4 {[%clk 0:00:15.9]} 51. Ba4 {[%clk 0:00:12.5]} 51... c3
{[%clk 0:00:16.9]} 52. Qb5+ {[%clk 0:00:13.5]} 52... Kc7 {[%clk 0:00:17.4]} 53.
Qxa5+ {[%clk 0:00:15.2]} 53... Kb8 {[%clk 0:00:14.4]} 54. Qb5+ {[%clk
0:00:16.2]} 54... Kc7 {[%clk 0:00:14.8]} 55. Qa5+ {[%clk 0:00:17.5]} 55... Kb7
{[%clk 0:00:16.2]} 56. Qxc3 {[%clk 0:00:15.4]} 56... Rd3 {[%clk 0:00:13.4]} 57.
Qc4 {[%clk 0:00:11.9]} 57... Kb6 {[%clk 0:00:10.8]} 58. Qb5+ {[%clk 0:00:12.7]}
58... Kc7 {[%clk 0:00:12]} 59. Qc4+ {[%clk 0:00:13.6]} 59... Kb6 {[%clk
0:00:12.4]} 60. Qb5+ {[%clk 0:00:11.8]} 60... Ka7 {[%clk 0:00:13.6]} 61. Qa5+
{[%clk 0:00:12.7]} 61... Kb7 {[%clk 0:00:14.3]} 62. Qb5+ {[%clk 0:00:13.7]}
62... Kc7 {[%clk 0:00:15.5]} 63. Qc4+ {[%clk 0:00:14.3]} 63... Kd8 {[%clk
0:00:16.7]} 64. Qg8+ {[%clk 0:00:15.1]} 64... Ke7 {[%clk 0:00:16.9]} 65. Bb3
{[%clk 0:00:13]} 65... Qf6 {[%clk 0:00:15.3]} 66. Bc2 {[%clk 0:00:07.3]} 66...
Rd8 {[%clk 0:00:14.9]} 67. Qxg6 {[%clk 0:00:08.2]} 67... Qxg6 {[%clk 0:00:15.7]}
68. Bxg6 {[%clk 0:00:09.9]} 68... Kd6 {[%clk 0:00:16.8]} 69. Bd3 {[%clk
0:00:11.5]} 69... Kc5 {[%clk 0:00:17.7]} 70. Bc2 {[%clk 0:00:13.1]} 70... Kb6
{[%clk 0:00:18.4]} 71. b4 {[%clk 0:00:13.6]} 71... Rh8 {[%clk 0:00:18.3]} 72.
Kb2 {[%clk 0:00:13.7]} 72... Rh4 {[%clk 0:00:18.9]} 73. Kc3 {[%clk 0:00:13.5]}
73... Rh3+ {[%clk 0:00:20.2]} 74. Bd3 {[%clk 0:00:14.5]} 74... Rh4 {[%clk
0:00:21]} 75. a4 {[%clk 0:00:15.8]} 75... Rh5 {[%clk 0:00:21.6]} 76. Bc4 {[%clk
0:00:16]} 76... Rg5 {[%clk 0:00:22.7]} 77. Bd3 {[%clk 0:00:17.2]} 77... Re5
{[%clk 0:00:23.5]} 78. Kd4 {[%clk 0:00:17.8]} 78... Rg5 {[%clk 0:00:24.7]} 79.
Kc4 {[%clk 0:00:15.1]} 79... Re5 {[%clk 0:00:25]} 80. Kd4 {[%clk 0:00:15.8]}
80... Rg5 {[%clk 0:00:25.8]} 81. Be4 {[%clk 0:00:17.5]} 81... Rh5 {[%clk
0:00:26.2]} 82. Bd5 {[%clk 0:00:18.5]} 82... Rh4+ {[%clk 0:00:26.7]} 83. Be4
{[%clk 0:00:20.2]} 83... Rh5 {[%clk 0:00:27.6]} 84. Kc4 {[%clk 0:00:20.9]} 84...
Rg5 {[%clk 0:00:28.1]} 85. Bd5 {[%clk 0:00:18.5]} 85... Rg4+ {[%clk 0:00:28.7]}
86. Kc3 {[%clk 0:00:20.1]} 86... Rg3+ {[%clk 0:00:29.4]} 87. Kb2 {[%clk
0:00:21.1]} 87... Rg5 {[%clk 0:00:29.3]} 88. Bc4 {[%clk 0:00:19.5]} 88... Rh5
{[%clk 0:00:29.7]} 89. a5+ {[%clk 0:00:20.3]} 89... Rxa5 {[%clk 0:00:30.4]} 90.
bxa5+ {[%clk 0:00:21.7]} 90... Kxa5 {[%clk 0:00:32]} 1/2-1/2

[Event "*** Titled Tuesday 3|2 Blitz"]
[Site "Chess.com"]
[Date "2015.11.03"]
[Round "3"]
[White "fastestmindalive"]
[Black "Tirantes"]
[Result "1-0"]
[WhiteElo "2333"]
[BlackElo "2225"]
[TimeControl "180+2"]
[EndTime "17:27:00 PST"]
[Termination "fastestmindalive won by resignation"]

1. e4 {[%clk 0:03:01.9]} 1... c6 {[%clk 0:02:58.3]} 2. d4 {[%clk 0:02:59.7]}
2... d5 {[%clk 0:02:58.1]} 3. exd5 {[%clk 0:02:56]} 3... cxd5 {[%clk 0:02:58.4]}
4. Bd3 {[%clk 0:02:57.1]} 4... Nc6 {[%clk 0:02:56.7]} 5. c3 {[%clk 0:02:57.3]}
5... Nf6 {[%clk 0:02:54.6]} 6. Bf4 {[%clk 0:02:57.4]} 6... Bg4 {[%clk
0:02:52.3]} 7. Qb3 {[%clk 0:02:57.6]} 7... Qc8 {[%clk 0:02:51.1]} 8. Nd2 {[%clk
0:02:57.4]} 8... e6 {[%clk 0:02:49.5]} 9. Ngf3 {[%clk 0:02:58.7]} 9... Bh5
{[%clk 0:02:49.7]} 10. O-O {[%clk 0:02:59.7]} 10... Bg6 {[%clk 0:02:47.3]} 11.
Ne1 {[%clk 0:02:56.2]} 11... Bxd3 {[%clk 0:02:46.3]} 12. Nxd3 {[%clk 0:02:58.1]}
12... Be7 {[%clk 0:02:46.3]} 13. Nf3 {[%clk 0:02:59.3]} 13... O-O {[%clk
0:02:44.8]} 14. Nfe5 {[%clk 0:02:59.8]} 14... a6 {[%clk 0:02:38]} 15. a3 {[%clk
0:02:57.7]} 15... Nxe5 {[%clk 0:02:36.8]} 16. Bxe5 {[%clk 0:02:58.8]} 16... Qc6
{[%clk 0:02:33.6]} 17. Bxf6 {[%clk 0:02:59.6]} 17... Bxf6 {[%clk 0:02:33.2]} 18.
Rae1 {[%clk 0:02:56.9]} 18... Rfc8 {[%clk 0:02:28.2]} 19. f4 {[%clk 0:02:50.4]}
19... g6 {[%clk 0:02:21.9]} 20. g4 {[%clk 0:02:49]} 20... Bg7 {[%clk 0:02:16.2]}
21. Qd1 {[%clk 0:02:49.3]} 21... Re8 {[%clk 0:02:12.5]} 22. Qf3 {[%clk
0:02:49.6]} 22... Re7 {[%clk 0:02:05.2]} 23. f5 {[%clk 0:02:50.4]} 23... exf5
{[%clk 0:02:04.8]} 24. Rxe7 {[%clk 0:02:50.3]} 1-0

[Event "*** Titled Tuesday 3|2 Blitz"]
[Site "Chess.com"]
[Date "2015.11.03"]
[Round "3"]
[White "Anton_Demchenko"]
[Black "WanderingPuppet"]
[Result "1-0"]
[WhiteElo "2639"]
[BlackElo "2162"]
[TimeControl "180+2"]
[EndTime "17:27:48 PST"]
[Termination "Anton_Demchenko won by resignation"]

1. e4 {[%clk 0:03:01.9]} 1... c5 {[%clk 0:03:00.6]} 2. Nf3 {[%clk 0:03:03]} 2...
d6 {[%clk 0:03:01.4]} 3. d4 {[%clk 0:03:03.6]} 3... cxd4 {[%clk 0:03:03.3]} 4.
Nxd4 {[%clk 0:03:05.5]} 4... Nf6 {[%clk 0:03:04.7]} 5. Nc3 {[%clk 0:03:07.4]}
5... a6 {[%clk 0:03:06.3]} 6. h3 {[%clk 0:03:08.7]} 6... e6 {[%clk 0:03:06.8]}
7. g4 {[%clk 0:03:09.7]} 7... Be7 {[%clk 0:03:08.5]} 8. g5 {[%clk 0:03:10.6]}
8... Nfd7 {[%clk 0:03:09.9]} 9. Be3 {[%clk 0:03:12.1]} 9... Nc6 {[%clk
0:02:52.6]} 10. h4 {[%clk 0:03:12.2]} 10... Qa5 {[%clk 0:02:29.1]} 11. Qd2
{[%clk 0:03:01]} 11... Nde5 {[%clk 0:02:23.4]} 12. Be2 {[%clk 0:02:59]} 12...
Bd7 {[%clk 0:02:15.6]} 13. Nb3 {[%clk 0:02:56]} 13... Qc7 {[%clk 0:02:13.5]} 14.
f4 {[%clk 0:02:56.5]} 14... Ng6 {[%clk 0:02:13.5]} 15. h5 {[%clk 0:02:57.3]}
15... Nf8 {[%clk 0:02:15]} 16. O-O-O {[%clk 0:02:58]} 16... Rd8 {[%clk
0:02:03.8]} 17. Kb1 {[%clk 0:02:58.1]} 17... Bc8 {[%clk 0:02:04.8]} 18. Nd4
{[%clk 0:02:43.8]} 18... Nd7 {[%clk 0:02:01.9]} 19. g6 {[%clk 0:02:41.5]} 19...
Nc5 {[%clk 0:01:56.5]} 20. h6 {[%clk 0:02:32.3]} 20... gxh6 {[%clk 0:01:52.1]}
21. gxf7+ {[%clk 0:02:30.7]} 21... Kxf7 {[%clk 0:01:53.3]} 22. f5 {[%clk
0:02:24.2]} 22... Bg5 {[%clk 0:01:45.3]} 23. Bxg5 {[%clk 0:02:15.6]} 23... hxg5
{[%clk 0:01:47.2]} 24. Qxg5 {[%clk 0:02:16.6]} 24... Nxd4 {[%clk 0:01:44.9]} 25.
Bh5+ {[%clk 0:02:17]} 25... Kf8 {[%clk 0:01:43.8]} 26. Qf6+ {[%clk 0:02:18]} 1-0

[Event "*** Titled Tuesday 3|2 Blitz"]
[Site "Chess.com"]
[Date "2015.11.03"]
[Round "3"]
[White "DanielNaroditsky"]
[Black "simplerXiao"]
[Result "1-0"]
[WhiteElo "2560"]
[BlackElo "2351"]
[TimeControl "180+2"]
[EndTime "17:29:18 PST"]
[Termination "DanielNaroditsky won by resignation"]

1. Nf3 {[%clk 0:03:01.9]} 1... Nf6 {[%clk 0:01:53.1]} 2. g3 {[%clk 0:03:01.8]}
2... d5 {[%clk 0:01:52]} 3. Bg2 {[%clk 0:03:02.6]} 3... Nc6 {[%clk 0:01:51.7]}
4. d4 {[%clk 0:03:03.1]} 4... Bg4 {[%clk 0:01:51.9]} 5. h3 {[%clk 0:03:03.3]}
5... Bxf3 {[%clk 0:01:51.9]} 6. Bxf3 {[%clk 0:03:04.4]} 6... Qd7 {[%clk
0:01:53.1]} 7. Bg2 {[%clk 0:03:00]} 7... O-O-O {[%clk 0:01:49.7]} 8. Bf4 {[%clk
0:02:53.7]} 8... Nh5 {[%clk 0:01:49]} 9. Bc1 {[%clk 0:02:52]} 9... e5 {[%clk
0:01:46.9]} 10. dxe5 {[%clk 0:02:53.3]} 10... Nxe5 {[%clk 0:01:47.9]} 11. c3
{[%clk 0:02:55]} 11... Bc5 {[%clk 0:01:46.3]} 12. Nd2 {[%clk 0:02:37.6]} 12...
Rhe8 {[%clk 0:01:42.5]} 13. Nb3 {[%clk 0:02:35.3]} 13... Bxf2+ {[%clk
0:01:40.1]} 14. Kxf2 {[%clk 0:02:34.6]} 14... Qf5+ {[%clk 0:01:40.6]} 15. Bf3
{[%clk 0:02:30.4]} 15... Nxf3 {[%clk 0:01:24.4]} 16. exf3 {[%clk 0:02:30.7]}
16... d4 {[%clk 0:01:05.1]} 17. cxd4 {[%clk 0:02:24.4]} 17... Qg6 {[%clk
0:00:54.7]} 18. g4 {[%clk 0:02:21.3]} 18... Qf6 {[%clk 0:00:50.6]} 19. gxh5
{[%clk 0:02:07.5]} 19... Qh4+ {[%clk 0:00:51.4]} 20. Kg2 {[%clk 0:02:09]} 20...
g6 {[%clk 0:00:37.3]} 21. h6 {[%clk 0:02:02.3]} 21... Rd5 {[%clk 0:00:25.8]} 22.
f4 {[%clk 0:01:53.1]} 22... Re4 {[%clk 0:00:18.8]} 23. Qg4+ {[%clk 0:01:52.7]}
1-0

[Event "*** Titled Tuesday 3|2 Blitz"]
[Site "Chess.com"]
[Date "2015.11.03"]
[Round "3"]
[White "Tesla17"]
[Black "Penguininja"]
[Result "0-1"]
[WhiteElo "2206"]
[BlackElo "2156"]
[TimeControl "180+2"]
[EndTime "17:30:33 PST"]
[Termination "Penguininja won by resignation"]

1. d4 {[%clk 0:03:01.9]} 1... d5 {[%clk 0:02:59.9]} 2. c4 {[%clk 0:03:02.7]}
2... c6 {[%clk 0:03:01.4]} 3. Nf3 {[%clk 0:03:03.5]} 3... Nf6 {[%clk 0:03:02.9]}
4. e3 {[%clk 0:03:04.6]} 4... e6 {[%clk 0:03:04.5]} 5. Nbd2 {[%clk 0:03:04.7]}
5... Nbd7 {[%clk 0:03:06.2]} 6. b3 {[%clk 0:03:05.6]} 6... g6 {[%clk 0:03:07.9]}
7. Bb2 {[%clk 0:03:06.5]} 7... Bg7 {[%clk 0:03:09.6]} 8. Bd3 {[%clk 0:03:07.1]}
8... O-O {[%clk 0:03:11.3]} 9. O-O {[%clk 0:03:08.1]} 9... b6 {[%clk 0:03:12.9]}
10. Ne5 {[%clk 0:03:02.5]} 10... Nxe5 {[%clk 0:03:10.7]} 11. dxe5 {[%clk
0:03:03.5]} 11... Nd7 {[%clk 0:03:11.8]} 12. f4 {[%clk 0:03:04.4]} 12... Bb7
{[%clk 0:03:11.5]} 13. cxd5 {[%clk 0:02:50.4]} 13... cxd5 {[%clk 0:03:03.3]} 14.
b4 {[%clk 0:02:46.5]} 14... Qe7 {[%clk 0:02:59.4]} 15. Qb3 {[%clk 0:02:41]}
15... Rfc8 {[%clk 0:02:55.2]} 16. Rac1 {[%clk 0:02:32.1]} 16... Bf8 {[%clk
0:02:54.4]} 17. a3 {[%clk 0:02:32]} 17... a5 {[%clk 0:02:50.7]} 18. Rxc8 {[%clk
0:02:23]} 18... Rxc8 {[%clk 0:02:50.4]} 19. Bc3 {[%clk 0:01:58.1]} 19... axb4
{[%clk 0:02:17.6]} 20. axb4 {[%clk 0:01:52.9]} 20... Qd8 {[%clk 0:02:06.7]} 21.
Rc1 {[%clk 0:01:50]} 21... Nb8 {[%clk 0:02:02.8]} 22. Bb5 {[%clk 0:01:37.7]}
22... Nc6 {[%clk 0:01:38.8]} 23. Bxc6 {[%clk 0:01:31.4]} 23... Rxc6 {[%clk
0:01:40.7]} 24. b5 {[%clk 0:01:25.7]} 24... Rc7 {[%clk 0:01:30.2]} 25. Nf3
{[%clk 0:01:18]} 25... d4 {[%clk 0:01:23.9]} 26. Nxd4 {[%clk 0:01:14.3]} 26...
Bd5 {[%clk 0:01:15.7]} 27. Qb2 {[%clk 0:01:13.7]} 27... Qa8 {[%clk 0:01:14]} 28.
Bd2 {[%clk 0:01:01.5]} 28... Ba3 {[%clk 0:01:08.9]} 29. Ra1 {[%clk 0:00:57.7]}
29... Bxb2 {[%clk 0:00:51.1]} 30. Rxa8+ {[%clk 0:00:58.2]} 30... Bxa8 {[%clk
0:00:53]} 0-1

[Event "*** Titled Tuesday 3|2 Blitz"]
[Site "Chess.com"]
[Date "2015.11.03"]
[Round "3"]
[White "Fh2411"]
[Black "ChadaevNikolay"]
[Result "0-1"]
[WhiteElo "2317"]
[BlackElo "2576"]
[TimeControl "180+2"]
[EndTime "17:30:59 PST"]
[Termination "ChadaevNikolay won by resignation"]

1. d4 {[%clk 0:03:01.9]} 1... Nf6 {[%clk 0:02:57.1]} 2. Nf3 {[%clk 0:03:02.6]}
2... g6 {[%clk 0:02:58.2]} 3. Bf4 {[%clk 0:03:03.1]} 3... Bg7 {[%clk 0:02:59.3]}
4. e3 {[%clk 0:03:04.8]} 4... O-O {[%clk 0:03:00.6]} 5. Be2 {[%clk 0:03:05.8]}
5... d6 {[%clk 0:03:02.2]} 6. O-O {[%clk 0:03:07]} 6... Nc6 {[%clk 0:02:58.9]}
7. h3 {[%clk 0:02:59.3]} 7... Bf5 {[%clk 0:02:59.5]} 8. c4 {[%clk 0:02:54.3]}
8... Ne4 {[%clk 0:03:00.2]} 9. Bh2 {[%clk 0:02:33.9]} 9... a5 {[%clk 0:02:53.5]}
10. Nbd2 {[%clk 0:02:28.2]} 10... e5 {[%clk 0:02:45.7]} 11. d5 {[%clk
0:02:23.2]} 11... Nxd2 {[%clk 0:02:44.9]} 12. Qxd2 {[%clk 0:02:17.3]} 12... Ne7
{[%clk 0:02:42.2]} 13. Rac1 {[%clk 0:02:00.9]} 13... b6 {[%clk 0:02:40.6]} 14.
Ne1 {[%clk 0:01:51.3]} 14... Bd7 {[%clk 0:02:39.1]} 15. f4 {[%clk 0:01:48]}
15... exf4 {[%clk 0:02:38.3]} 16. exf4 {[%clk 0:01:43.6]} 16... Nf5 {[%clk
0:02:39.2]} 17. Nf3 {[%clk 0:01:38.8]} 17... Re8 {[%clk 0:02:31.6]} 18. Bd3
{[%clk 0:01:37.7]} 18... Qf6 {[%clk 0:02:26.5]} 19. b3 {[%clk 0:01:23.5]} 19...
h6 {[%clk 0:02:13.9]} 20. Kh1 {[%clk 0:01:24.2]} 20... a4 {[%clk 0:02:02.3]} 21.
b4 {[%clk 0:01:24.6]} 21... a3 {[%clk 0:02:03.6]} 22. c5 {[%clk 0:01:19.4]}
22... bxc5 {[%clk 0:02:02.1]} 23. bxc5 {[%clk 0:01:21.3]} 23... Ne3 {[%clk
0:01:49]} 24. Rfe1 {[%clk 0:01:15.4]} 24... Nxd5 {[%clk 0:01:49.7]} 25. Bxg6
{[%clk 0:01:08.9]} 25... Qxg6 {[%clk 0:01:44.6]} 26. Qxd5 {[%clk 0:01:06.6]}
26... Be6 {[%clk 0:01:44.3]} 27. Qd2 {[%clk 0:01:04.6]} 27... Bb2 {[%clk
0:01:44]} 28. cxd6 {[%clk 0:01:04.7]} 28... Bxc1 {[%clk 0:01:39.4]} 29. Rxc1
{[%clk 0:01:05.3]} 29... cxd6 {[%clk 0:01:40.5]} 30. Nd4 {[%clk 0:01:04.7]}
30... Rac8 {[%clk 0:01:37.9]} 31. Rd1 {[%clk 0:00:58.6]} 31... Rb8 {[%clk
0:01:25.2]} 32. f5 {[%clk 0:00:49]} 32... Bxf5 {[%clk 0:01:24.4]} 33. Nxf5
{[%clk 0:00:50.6]} 33... Qxf5 {[%clk 0:01:23.1]} 34. Qxh6 {[%clk 0:00:51.2]}
34... Rb2 {[%clk 0:01:18.3]} 35. Bxd6 {[%clk 0:00:47.6]} 35... Rxa2 {[%clk
0:01:08.4]} 36. Rd4 {[%clk 0:00:43.9]} 36... Qf1+ {[%clk 0:01:04.1]} 0-1

[Event "*** Titled Tuesday 3|2 Blitz"]
[Site "Chess.com"]
[Date "2015.11.03"]
[Round "3"]
[White "ArnaudovP"]
[Black "Alliswell998"]
[Result "0-1"]
[WhiteElo "2305"]
[BlackElo "2107"]
[TimeControl "180+2"]
[EndTime "17:31:42 PST"]
[Termination "Alliswell998 won by checkmate"]

1. Nf3 {[%clk 0:02:55.8]} 1... c5 {[%clk 0:03:00.1]} 2. c4 {[%clk 0:02:56.3]}
2... b6 {[%clk 0:03:00.4]} 3. d4 {[%clk 0:02:56]} 3... cxd4 {[%clk 0:03:00.9]}
4. Nxd4 {[%clk 0:02:57.5]} 4... Bb7 {[%clk 0:03:02.6]} 5. Nc3 {[%clk 0:02:58.5]}
5... Nf6 {[%clk 0:03:04.2]} 6. f3 {[%clk 0:02:59.6]} 6... e6 {[%clk 0:03:05.3]}
7. e4 {[%clk 0:03:00.5]} 7... d6 {[%clk 0:03:07]} 8. Be3 {[%clk 0:03:01.3]} 8...
Be7 {[%clk 0:03:08.1]} 9. Be2 {[%clk 0:03:02.7]} 9... a6 {[%clk 0:03:08.9]} 10.
O-O {[%clk 0:03:04.1]} 10... Nbd7 {[%clk 0:03:10.4]} 11. a4 {[%clk 0:03:05.3]}
11... O-O {[%clk 0:03:07.9]} 12. a5 {[%clk 0:03:06.7]} 12... bxa5 {[%clk
0:03:07.8]} 13. Nb3 {[%clk 0:03:07.6]} 13... Rb8 {[%clk 0:03:01.7]} 14. Nxa5
{[%clk 0:03:08.4]} 14... Ba8 {[%clk 0:03:02.1]} 15. Qd2 {[%clk 0:03:09.9]} 15...
Nc5 {[%clk 0:03:00.5]} 16. Rfb1 {[%clk 0:03:09.2]} 16... Qc7 {[%clk 0:02:57.6]}
17. b4 {[%clk 0:03:09.3]} 17... Ncd7 {[%clk 0:02:53.8]} 18. b5 {[%clk
0:03:10.3]} 18... axb5 {[%clk 0:02:53]} 19. Nxb5 {[%clk 0:03:10.4]} 19... Qd8
{[%clk 0:02:52.1]} 20. Nb3 {[%clk 0:03:05.3]} 20... Bc6 {[%clk 0:02:45.9]} 21.
Nxd6 {[%clk 0:03:02.9]} 21... Qc7 {[%clk 0:02:39.4]} 22. Nb5 {[%clk 0:03:03.3]}
22... Qe5 {[%clk 0:02:35.3]} 23. Qd4 {[%clk 0:02:47.2]} 23... Qh5 {[%clk
0:02:30.1]} 24. Qd1 {[%clk 0:02:39.9]} 24... Rfd8 {[%clk 0:02:25.4]} 25. Qf1
{[%clk 0:02:40]} 25... Qh4 {[%clk 0:02:07.8]} 26. Qf2 {[%clk 0:02:40.4]} 26...
Qh5 {[%clk 0:02:06.4]} 27. Rd1 {[%clk 0:02:37.8]} 27... Ne5 {[%clk 0:02:07]} 28.
Rxd8+ {[%clk 0:02:36.6]} 28... Rxd8 {[%clk 0:02:06]} 29. Na7 {[%clk 0:02:37.3]}
29... Bb7 {[%clk 0:01:58.8]} 30. c5 {[%clk 0:02:33]} 30... g5 {[%clk 0:01:43.8]}
31. Na5 {[%clk 0:02:32.9]} 31... Ba8 {[%clk 0:01:38.4]} 32. c6 {[%clk
0:02:32.2]} 32... Bd6 {[%clk 0:01:34.7]} 33. Nb7 {[%clk 0:02:31.6]} 33... Bxb7
{[%clk 0:01:32.1]} 34. cxb7 {[%clk 0:02:29.6]} 34... Neg4 {[%clk 0:01:15.5]} 35.
fxg4 {[%clk 0:02:29.6]} 35... Qxh2+ {[%clk 0:01:15.7]} 36. Kf1 {[%clk
0:02:30.4]} 36... Nxe4 {[%clk 0:01:16.5]} 37. Qg1 {[%clk 0:02:27.3]} 37... Ng3+
{[%clk 0:00:59.1]} 38. Kf2 {[%clk 0:02:20.4]} 38... Ne4+ {[%clk 0:00:57.5]} 39.
Kf1 {[%clk 0:02:20.6]} 39... Ng3+ {[%clk 0:00:58]} 40. Kf2 {[%clk 0:02:08.7]}
40... Ne4+ {[%clk 0:00:57.6]} 41. Kf3 {[%clk 0:02:03.5]} 41... Qg3+ {[%clk
0:00:39.9]} 42. Kxe4 {[%clk 0:02:04.4]} 42... Qe5+ {[%clk 0:00:31.2]} 43. Kf3
{[%clk 0:01:58.1]} 43... Qg3+ {[%clk 0:00:29.8]} 44. Ke4 {[%clk 0:01:59.2]}
44... Qe5+ {[%clk 0:00:16.2]} 45. Kd3 {[%clk 0:02:00.2]} 45... Bb4+ {[%clk
0:00:16.8]} 46. Kc4 {[%clk 0:01:55.8]} 46... Qc3+ {[%clk 0:00:15.9]} 47. Kb5
{[%clk 0:01:53.3]} 47... Rd5+ {[%clk 0:00:15.5]} 48. Ka4 {[%clk 0:01:49.8]}
48... Bd6 {[%clk 0:00:10.9]} 49. Nb5 {[%clk 0:01:45.5]} 49... Qb4# {[%clk
0:00:10.5]} 0-1

[Event "*** Titled Tuesday 3|2 Blitz"]
[Site "Chess.com"]
[Date "2015.11.03"]
[Round "3"]
[White "gauranga"]
[Black "chesstatour"]
[Result "0-1"]
[WhiteElo "1995"]
[BlackElo "1932"]
[TimeControl "180+2"]
[EndTime "17:32:11 PST"]
[Termination "chesstatour won by checkmate"]

1. b3 {[%clk 0:03:01.9]} 1... f5 {[%clk 0:02:53.9]} 2. Bb2 {[%clk 0:03:02.7]}
2... e6 {[%clk 0:02:55.1]} 3. d3 {[%clk 0:03:04]} 3... Nf6 {[%clk 0:02:56.7]} 4.
Nd2 {[%clk 0:03:05.5]} 4... d5 {[%clk 0:02:56.8]} 5. g3 {[%clk 0:03:06.6]} 5...
b6 {[%clk 0:02:56]} 6. Bg2 {[%clk 0:03:07.7]} 6... Bb7 {[%clk 0:02:57.6]} 7. a3
{[%clk 0:03:08.9]} 7... Nbd7 {[%clk 0:02:59]} 8. c4 {[%clk 0:03:00.3]} 8... Bd6
{[%clk 0:02:58.1]} 9. Qc2 {[%clk 0:03:01.1]} 9... O-O {[%clk 0:02:57.7]} 10. e4
{[%clk 0:02:45.7]} 10... dxe4 {[%clk 0:02:54.9]} 11. dxe4 {[%clk 0:02:46.6]}
11... Nc5 {[%clk 0:02:48.7]} 12. Ngf3 {[%clk 0:02:07.3]} 12... fxe4 {[%clk
0:02:36.1]} 13. Ng5 {[%clk 0:02:07.9]} 13... Nd3+ {[%clk 0:02:35.1]} 14. Kf1
{[%clk 0:02:09.2]} 14... Nxf2 {[%clk 0:02:04.3]} 15. Nxe6 {[%clk 0:02:07.1]}
15... Qe7 {[%clk 0:01:49.7]} 16. Nxf8 {[%clk 0:02:06.7]} 16... Rxf8 {[%clk
0:01:51.1]} 17. Kxf2 {[%clk 0:01:59]} 17... Ng4+ {[%clk 0:01:51.9]} 18. Ke1
{[%clk 0:01:54.9]} 18... Ne3 {[%clk 0:01:44]} 19. Qc3 {[%clk 0:01:47.5]} 19...
Nxg2+ {[%clk 0:01:44.3]} 20. Ke2 {[%clk 0:01:48.3]} 20... e3 {[%clk 0:01:30.5]}
21. Qxg7+ {[%clk 0:01:28.4]} 21... Qxg7 {[%clk 0:01:29.9]} 22. Bxg7 {[%clk
0:01:30]} 22... Kxg7 {[%clk 0:01:31.1]} 23. Nf1 {[%clk 0:01:22.5]} 23... Rf2+
{[%clk 0:01:27.8]} 24. Kd3 {[%clk 0:01:20.8]} 24... e2 {[%clk 0:00:38.7]} 25.
Nd2 {[%clk 0:01:21.8]} 25... e1=Q {[%clk 0:00:18.8]} 26. Raxe1 {[%clk
0:01:21.8]} 26... Nxe1+ {[%clk 0:00:20.7]} 27. Rxe1 {[%clk 0:01:22.8]} 27... Rf7
{[%clk 0:00:21.6]} 28. b4 {[%clk 0:01:16.6]} 28... Bc8 {[%clk 0:00:21]} 29. Re2
{[%clk 0:01:11.2]} 29... Bf5+ {[%clk 0:00:18.5]} 30. Kc3 {[%clk 0:01:11.3]}
30... Be7 {[%clk 0:00:16.9]} 31. Nb3 {[%clk 0:01:03.3]} 31... Bf6+ {[%clk
0:00:17.5]} 32. Kd2 {[%clk 0:01:02.9]} 32... Rd7+ {[%clk 0:00:16.6]} 33. Ke1
{[%clk 0:01:02.9]} 33... Bc3+ {[%clk 0:00:11.7]} 34. Kf2 {[%clk 0:01:03]} 34...
Rf7 {[%clk 0:00:12.2]} 35. Kg2 {[%clk 0:01:02.8]} 35... Bc8 {[%clk 0:00:08.6]}
36. h4 {[%clk 0:00:49.6]} 36... Bb7+ {[%clk 0:00:09.4]} 37. Kh2 {[%clk
0:00:48.7]} 37... h5 {[%clk 0:00:10.1]} 38. c5 {[%clk 0:00:47.6]} 38... Rf1
{[%clk 0:00:06.3]} 39. g4 {[%clk 0:00:44.2]} 39... hxg4 {[%clk 0:00:05.7]} 40.
Re7+ {[%clk 0:00:38]} 40... Kf6 {[%clk 0:00:06.4]} 41. Rxc7 {[%clk 0:00:38.8]}
41... Be5# {[%clk 0:00:06.1]} 0-1